[Event "FIDE Grand Swiss 2023"]
[Site "Villa Marina, Douglas, Isle of Man"]
[Date "2023.10.28"]
[Round "4.9"]
[White "Niemann, Hans Moke"]
[Black "Rapport, Richard"]
[Result "1-0"]
[WhiteElo "2667"]
[BlackElo "2752"]
[EventDate "2023.10.25"]
[ECO "D12"]
[PlyCount "101"]
[BlackFideId "738590"]
[TimeControl "40/100 + 20/50 + 15 + 30s/move"]
[WhiteFideId "2093596"]

1.d4 {[%clk 01:40:52] [%emt 00:00:06]} 1...d5 {[%clk 01:40:21] [%emt 00:00:39]} 
2.c4 {[%clk 01:40:41] [%emt 00:00:41]} 2...c6 {[%clk 01:40:38] [%emt 00:00:14]} 
3.Nf3 {[%clk 01:39:17] [%emt 00:01:53]} 3...Nf6 {[%clk 01:40:51] [%emt
00:00:17]} 4.e3 {[%clk 01:38:17] [%emt 00:01:29]} 4...Bf5 {[%clk 01:40:45] [%emt
00:00:37]} 5.Nc3 {[%clk 01:38:13] [%emt 00:00:34]} 5...e6 {[%clk 01:41:08] [%emt
00:00:08]} 6.Nh4 {[%clk 01:38:13] [%emt 00:00:29]} 6...Bg6 {[%clk 01:41:21]
[%emt 00:00:18]} 7.Qb3 {[%clk 01:33:46] [%emt 00:04:57]} 7...Qc7 {[%clk
01:41:14] [%emt 00:00:37]} 8.Bd2 {[%clk 01:32:01] [%emt 00:02:14]} 8...Ne4 
{[%clk 01:40:36] [%emt 00:01:09]} 9.Nxe4 {[%clk 01:23:56] [%emt 00:08:34]} 
9...Bxe4 {[%clk 01:40:12] [%emt 00:00:55]} 10.cxd5 {[%clk 01:23:38] [%emt
00:00:48]} 10...Bxd5 {[%clk 01:35:47] [%emt 00:04:55]} 11.Bc4 {[%clk 01:22:30]
[%emt 00:01:35]} 11...Be7 {[%clk 01:30:28] [%emt 00:05:51]} 12.Nf3 {[%clk
01:22:30] [%emt 00:00:30]} 12...Nd7 {[%clk 01:27:08] [%emt 00:03:50]} 13.Qc2 
{[%clk 01:14:42] [%emt 00:08:18]} 13...Nf6 {[%clk 01:17:18] [%emt 00:10:21]} 
14.Bd3 {[%clk 01:12:17] [%emt 00:02:55]} 14...Bxf3 {[%clk 01:16:48] [%emt
00:01:00]} 15.gxf3 {[%clk 01:11:54] [%emt 00:00:52]} 15...Nd5 {[%clk 01:08:12]
[%emt 00:09:07]} 16.a3 {[%clk 01:10:50] [%emt 00:01:34]} 16...O-O-O {[%clk
01:04:31] [%emt 00:04:10]} 17.O-O-O {[%clk 01:03:38] [%emt 00:07:40]} 17...g5 
{[%clk 00:55:05] [%emt 00:09:58]} 18.Kb1 {[%clk 01:01:38] [%emt 00:02:27]} 
18...Kb8 {[%clk 00:55:05] [%emt 00:00:32]} 19.Rc1 {[%clk 00:54:28] [%emt
00:07:42]} 19...h6 {[%clk 00:43:54] [%emt 00:11:41]} 20.Qb3 {[%clk 00:53:26]
[%emt 00:01:30]} 20...Ka8 {[%clk 00:41:28] [%emt 00:02:58]} 21.Bc4 {[%clk
00:44:08] [%emt 00:09:48]} 21...Qd7 {[%clk 00:34:15] [%emt 00:07:43]} 22.Ba5 
{[%clk 00:40:14] [%emt 00:04:24]} 22...Rc8 {[%clk 00:32:39] [%emt 00:02:06]} 
23.Rhd1 {[%clk 00:39:55] [%emt 00:00:47]} 23...Bd8 {[%clk 00:30:44] [%emt
00:02:26]} 24.Be1 {[%clk 00:38:42] [%emt 00:01:41]} 24...Bc7 {[%clk 00:29:06]
[%emt 00:02:10]} 25.h3 {[%clk 00:38:58] [%emt 00:00:14]} 25...Rhd8 {[%clk
00:29:07] [%emt 00:00:30]} 26.a4 {[%clk 00:36:51] [%emt 00:02:36]} 26...Bb8 
{[%clk 00:25:00] [%emt 00:04:38]} 27.Ba5 {[%clk 00:35:40] [%emt 00:01:41]} 
27...Bc7 {[%clk 00:25:21] [%emt 00:00:09]} 28.Bd2 {[%clk 00:35:45] [%emt
00:00:24]} 28...Bb8 {[%clk 00:23:56] [%emt 00:01:55]} 29.Ka1 {[%clk 00:33:40]
[%emt 00:02:35]} 29...Qe7 {[%clk 00:23:21] [%emt 00:01:06]} 30.Ba5 {[%clk
00:30:22] [%emt 00:03:47]} 30...Bc7 {[%clk 00:23:23] [%emt 00:00:29]} 31.Bd2 
{[%clk 00:29:51] [%emt 00:01:00]} 31...Bb8 {[%clk 00:23:19] [%emt 00:00:35]} 
32.Rc2 {[%clk 00:19:53] [%emt 00:10:28]} 32...Bd6 {[%clk 00:22:14] [%emt
00:01:35]} 33.Ba5 {[%clk 00:18:47] [%emt 00:01:36]} 33...Re8 {[%clk 00:21:19]
[%emt 00:01:25]} 34.e4 {[%clk 00:10:45] [%emt 00:08:31]} 34...Nf4 {[%clk
00:14:30] [%emt 00:07:20]} 35.Bf1 {[%clk 00:10:58] [%emt 00:00:17]} 35...Bc7 
{[%clk 00:11:21] [%emt 00:03:39]} 36.Bb4 {[%clk 00:09:54] [%emt 00:01:34]} 
36...Qd7 {[%clk 00:10:18] [%emt 00:01:33]} 37.a5 {[%clk 00:05:20] [%emt
00:05:02]} 37...a6 {[%clk 00:07:27] [%emt 00:03:22]} 38.Bc5 {[%clk 00:05:17]
[%emt 00:00:32]} 38...Rcd8 {[%clk 00:05:03] [%emt 00:02:55]} 39.Rdc1 {[%clk
00:03:53] [%emt 00:01:54]} 39...Bxa5 {[%clk 00:04:22] [%emt 00:01:11]} 40.Qa4 
{[%clk 00:00:38] [%emt 00:03:45]} 40...Qc7 {[%clk 00:03:09] [%emt 00:01:44]} 
41.b4 {[%clk 00:42:35] [%emt 00:08:33]} 41...Bb6 {[%clk 00:53:06] [%emt
00:00:33]} 42.Bxa6 {[%clk 00:39:00] [%emt 00:04:05]} 42...Kb8 {[%clk 00:47:20]
[%emt 00:06:16]} 43.Ra2 {[%clk 00:29:19] [%emt 00:10:10]} 43...Rxd4 {[%clk
00:33:19] [%emt 00:14:32]} 44.Bb5 {[%clk 00:23:32] [%emt 00:06:17]} 44...Kc8 
{[%clk 00:31:30] [%emt 00:02:20]} 45.Bxb6 {[%clk 00:21:49] [%emt 00:02:12]} 
45...Qxb6 {[%clk 00:31:49] [%emt 00:00:12]} 46.Bxc6 {[%clk 00:22:11] [%emt
00:00:06]} 46...Nd3 {[%clk 00:32:11] [%emt 00:00:08]} 47.Qa8+ {[%clk 00:20:16]
[%emt 00:02:25]} 47...Kc7 {[%clk 00:31:52] [%emt 00:00:50]} 48.Bxe8+ {[%clk
00:20:37] [%emt 00:00:09]} 48...Nxc1 {[%clk 00:32:18] [%emt 00:00:04]} 49.Rc2+ 
{[%clk 00:20:57] [%emt 00:00:10]} 49...Kd6 {[%clk 00:32:42] [%emt 00:00:05]} 
50.Qb8+ {[%clk 00:21:24] [%emt 00:00:03]} 50...Ke7 {[%clk 00:33:04] [%emt
00:00:09]} 51.Rc7+ {[%clk 00:21:50] [%emt 00:00:04]} 1-0

[Event "FIDE Grand Swiss 2023"]
[Site "Villa Marina, Douglas, Isle of Man"]
[Date "2023.10.28"]
[Round "4.10"]
[White "Bacrot, Etienne"]
[Black "Duda, Jan-Krzysztof"]
[Result "1/2-1/2"]
[WhiteElo "2669"]
[BlackElo "2726"]
[EventDate "2023.10.25"]
[ECO "C67"]
[PlyCount "69"]
[BlackFideId "1170546"]
[TimeControl "40/100 + 20/50 + 15 + 30s/move"]
[WhiteFideId "605506"]

1.e4 {[%clk 01:40:57] [%emt 00:00:02]} 1...e5 {[%clk 01:40:55] [%emt 00:00:06]} 
2.Nf3 {[%clk 01:41:19] [%emt 00:00:08]} 2...Nc6 {[%clk 01:41:20] [%emt
00:00:05]} 3.Bb5 {[%clk 01:41:44] [%emt 00:00:05]} 3...Nf6 {[%clk 01:41:44]
[%emt 00:00:06]} 4.O-O {[%clk 01:42:06] [%emt 00:00:07]} 4...Nxe4 {[%clk
01:42:09] [%emt 00:00:05]} 5.Re1 {[%clk 01:42:11] [%emt 00:00:24]} 5...Nd6 
{[%clk 01:42:33] [%emt 00:00:07]} 6.Nxe5 {[%clk 01:42:18] [%emt 00:00:23]} 
6...Be7 {[%clk 01:42:51] [%emt 00:00:12]} 7.Bf1 {[%clk 01:41:45] [%emt
00:01:03]} 7...Nxe5 {[%clk 01:43:16] [%emt 00:00:06]} 8.Rxe5 {[%clk 01:42:09]
[%emt 00:00:05]} 8...O-O {[%clk 01:43:39] [%emt 00:00:07]} 9.Nc3 {[%clk
01:41:47] [%emt 00:00:52]} 9...Ne8 {[%clk 01:43:57] [%emt 00:00:12]} 10.Nd5 
{[%clk 01:39:57] [%emt 00:02:20]} 10...Bd6 {[%clk 01:43:54] [%emt 00:00:33]} 
11.Re1 {[%clk 01:40:19] [%emt 00:00:07]} 11...c6 {[%clk 01:44:18] [%emt
00:00:07]} 12.Ne3 {[%clk 01:40:29] [%emt 00:00:19]} 12...Be7 {[%clk 01:44:43]
[%emt 00:00:06]} 13.c4 {[%clk 01:39:16] [%emt 00:01:43]} 13...Nc7 {[%clk
01:45:08] [%emt 00:00:06]} 14.d4 {[%clk 01:39:25] [%emt 00:00:21]} 14...d5 
{[%clk 01:45:27] [%emt 00:00:11]} 15.cxd5 {[%clk 01:39:47] [%emt 00:00:08]} 
15...Bb4 {[%clk 01:45:52] [%emt 00:00:05]} 16.Bd2 {[%clk 01:40:10] [%emt
00:00:07]} 16...Bxd2 {[%clk 01:46:17] [%emt 00:00:05]} 17.Qxd2 {[%clk 01:40:29]
[%emt 00:00:11]} 17...Nxd5 {[%clk 01:46:44] [%emt 00:00:04]} 18.Nxd5 {[%clk
01:40:42] [%emt 00:00:16]} 18...Qxd5 {[%clk 01:47:08] [%emt 00:00:06]} 19.Re5 
{[%clk 01:40:23] [%emt 00:00:49]} 19...Qd6 {[%clk 01:47:34] [%emt 00:00:05]} 
20.Bc4 {[%clk 01:40:29] [%emt 00:00:23]} 20...Bd7 {[%clk 01:48:00] [%emt
00:00:04]} 21.Rae1 {[%clk 01:35:36] [%emt 00:05:22]} 21...b5 {[%clk 01:48:25]
[%emt 00:00:06]} 22.Bb3 {[%clk 01:36:00] [%emt 00:00:06]} 22...a5 {[%clk
01:48:52] [%emt 00:00:04]} 23.a3 {[%clk 01:35:53] [%emt 00:00:37]} 23...a4 
{[%clk 01:49:17] [%emt 00:00:05]} 24.Ba2 {[%clk 01:36:18] [%emt 00:00:05]} 
24...Rae8 {[%clk 01:49:42] [%emt 00:00:05]} 25.Qf4 {[%clk 01:28:12] [%emt
00:08:35]} 25...Rxe5 {[%clk 01:45:21] [%emt 00:04:51]} 26.Qxe5 {[%clk 01:23:14]
[%emt 00:05:28]} 26...Qxe5 {[%clk 01:42:08] [%emt 00:03:44]} 27.Rxe5 {[%clk
01:23:25] [%emt 00:00:18]} 27...Re8 {[%clk 01:38:09] [%emt 00:04:29]} 28.Rxe8+ 
{[%clk 01:18:14] [%emt 00:05:41]} 28...Bxe8 {[%clk 01:38:34] [%emt 00:00:06]} 
29.Kf1 {[%clk 01:18:40] [%emt 00:00:03]} 29...Kf8 {[%clk 01:38:58] [%emt
00:00:06]} 30.Ke2 {[%clk 01:19:06] [%emt 00:00:03]} 30...Ke7 {[%clk 01:39:18]
[%emt 00:00:10]} 31.Kd2 {[%clk 01:19:10] [%emt 00:00:26]} 31...Kd6 {[%clk
01:39:23] [%emt 00:00:26]} 32.b3 {[%clk 01:16:28] [%emt 00:03:12]} 32...axb3 
{[%clk 01:39:47] [%emt 00:00:07]} 33.Bxb3 {[%clk 01:16:56] [%emt 00:00:02]} 
33...f6 {[%clk 01:40:08] [%emt 00:00:09]} 34.Kc3 {[%clk 01:16:05] [%emt
00:01:20]} 34...c5 {[%clk 01:40:24] [%emt 00:00:15]} 35.dxc5+ {[%emt 00:00:27]} 1/2-1/2

[Event "FIDE Grand Swiss 2023"]
[Site "Villa Marina, Douglas, Isle of Man"]
[Date "2023.10.28"]
[Round "4.11"]
[White "Yu, Yangyi"]
[Black "Narayanan.S.L"]
[Result "1-0"]
[WhiteElo "2720"]
[BlackElo "2651"]
[EventDate "2023.10.25"]
[ECO "C50"]
[PlyCount "61"]
[BlackFideId "5058422"]
[TimeControl "40/100 + 20/50 + 15 + 30s/move"]
[WhiteFideId "8603820"]

1.e4 {[%clk 01:40:50] [%emt 00:00:09]} 1...e5 {[%clk 01:40:53] [%emt 00:00:08]} 
2.Nf3 {[%clk 01:41:11] [%emt 00:00:09]} 2...Nc6 {[%clk 01:41:17] [%emt
00:00:05]} 3.Bc4 {[%clk 01:40:57] [%emt 00:00:44]} 3...Bc5 {[%clk 01:41:40]
[%emt 00:00:07]} 4.d3 {[%clk 01:41:18] [%emt 00:00:10]} 4...Nf6 {[%clk 01:42:03]
[%emt 00:00:06]} 5.O-O {[%clk 01:41:27] [%emt 00:00:21]} 5...d6 {[%clk 01:42:24]
[%emt 00:00:09]} 6.c3 {[%clk 01:41:34] [%emt 00:00:24]} 6...Bb6 {[%clk 01:42:47]
[%emt 00:00:06]} 7.Nbd2 {[%clk 01:41:26] [%emt 00:00:38]} 7...O-O {[%clk
01:42:47] [%emt 00:00:31]} 8.Bb3 {[%clk 01:40:50] [%emt 00:01:07]} 8...Ne7 
{[%clk 01:42:42] [%emt 00:00:34]} 9.Nh4 {[%clk 01:40:14] [%emt 00:01:06]} 
9...d5 {[%clk 01:28:43] [%emt 00:14:29]} 10.exd5 {[%clk 01:40:06] [%emt
00:00:38]} 10...Bg4 {[%clk 01:22:32] [%emt 00:06:40]} 11.Nhf3 {[%clk 01:35:10]
[%emt 00:05:27]} 11...Nfxd5 {[%clk 01:17:22] [%emt 00:05:39]} 12.h3 {[%clk
01:29:30] [%emt 00:06:10]} 12...Bh5 {[%clk 01:16:50] [%emt 00:01:03]} 13.g4 
{[%clk 01:23:58] [%emt 00:06:02]} 13...Bg6 {[%clk 01:17:07] [%emt 00:00:12]} 
14.Nxe5 {[%clk 01:24:05] [%emt 00:00:23]} 14...Nf4 {[%clk 01:13:33] [%emt
00:04:04]} 15.Ndc4 {[%clk 01:19:02] [%emt 00:05:34]} 15...Nxd3 {[%clk 01:03:00]
[%emt 00:11:03]} 16.Bg5 {[%clk 01:15:25] [%emt 00:04:06]} 16...Re8 {[%clk
00:40:37] [%emt 00:22:54]} 17.Nxg6 {[%clk 01:08:36] [%emt 00:07:18]} 17...hxg6 
{[%clk 00:40:58] [%emt 00:00:10]} 18.Nxb6 {[%clk 01:08:43] [%emt 00:00:23]} 
18...cxb6 {[%clk 00:36:35] [%emt 00:04:54]} 19.Qf3 {[%clk 01:06:46] [%emt
00:02:26]} 19...Ne5 {[%clk 00:36:33] [%emt 00:00:31]} 20.Qe4 {[%clk 00:48:08]
[%emt 00:19:08]} 20...Qc7 {[%clk 00:31:21] [%emt 00:05:43]} 21.Rfe1 {[%clk
00:48:08] [%emt 00:00:29]} 21...N7c6 {[%clk 00:24:39] [%emt 00:07:12]} 22.Rad1 
{[%clk 00:44:01] [%emt 00:04:38]} 22...b5 {[%clk 00:22:46] [%emt 00:02:23]} 
23.Bd5 {[%clk 00:42:36] [%emt 00:01:55]} 23...Kh7 {[%clk 00:21:10] [%emt
00:02:06]} 24.b3 {[%clk 00:39:28] [%emt 00:03:38]} 24...Rac8 {[%clk 00:17:20]
[%emt 00:04:20]} 25.Kg2 {[%clk 00:38:37] [%emt 00:01:22]} 25...Nd7 {[%clk
00:14:40] [%emt 00:03:10]} 26.Qf3 {[%clk 00:32:18] [%emt 00:06:47]} 26...Rxe1 
{[%clk 00:13:26] [%emt 00:01:45]} 27.Rxe1 {[%clk 00:32:43] [%emt 00:00:04]} 
27...Qd6 {[%clk 00:04:32] [%emt 00:09:25]} 28.Rd1 {[%clk 00:31:37] [%emt
00:01:35]} 28...Nce5 {[%clk 00:01:53] [%emt 00:03:09]} 29.Qg3 {[%clk 00:31:34]
[%emt 00:00:33]} 29...Qc5 {[%clk 00:00:54] [%emt 00:01:30]} 30.f4 {[%clk
00:29:25] [%emt 00:02:39]} 30...Re8 {[%clk 00:00:33] [%emt 00:00:51]} 31.fxe5 
{[%clk 00:28:29] [%emt 00:01:26]} 1-0

[Event "FIDE Grand Swiss 2023"]
[Site "Villa Marina, Douglas, Isle of Man"]
[Date "2023.10.28"]
[Round "4.12"]
[White "Volokitin, Andrei"]
[Black "Keymer, Vincent"]
[Result "0-1"]
[WhiteElo "2664"]
[BlackElo "2717"]
[EventDate "2023.10.25"]
[ECO "C50"]
[PlyCount "69"]
[BlackFideId "12940690"]
[TimeControl "40/100 + 20/50 + 15 + 30s/move"]
[WhiteFideId "14107090"]

1.e4 {[%clk 01:40:58] [%emt 00:00:02]} 1...e5 {[%clk 01:40:57] [%emt 00:00:04]} 
2.Nf3 {[%clk 01:41:23] [%emt 00:00:04]} 2...Nc6 {[%clk 01:41:24] [%emt
00:00:03]} 3.Bc4 {[%clk 01:41:46] [%emt 00:00:08]} 3...Nf6 {[%clk 01:41:50]
[%emt 00:00:04]} 4.d3 {[%clk 01:42:09] [%emt 00:00:06]} 4...Bc5 {[%clk 01:42:16]
[%emt 00:00:04]} 5.O-O {[%clk 01:42:33] [%emt 00:00:07]} 5...a6 {[%clk 01:42:24]
[%emt 00:00:22]} 6.c3 {[%clk 01:42:46] [%emt 00:00:17]} 6...d6 {[%clk 01:41:43]
[%emt 00:01:11]} 7.a4 {[%clk 01:42:54] [%emt 00:00:21]} 7...O-O {[%clk 01:41:36]
[%emt 00:00:37]} 8.Re1 {[%clk 01:42:05] [%emt 00:01:19]} 8...Ba7 {[%clk
01:41:59] [%emt 00:00:09]} 9.h3 {[%clk 01:41:30] [%emt 00:01:03]} 9...Nh5 
{[%clk 01:42:09] [%emt 00:00:20]} 10.Bg5 {[%clk 01:39:40] [%emt 00:02:20]} 
10...Nf6 {[%clk 01:42:23] [%emt 00:00:17]} 11.Nbd2 {[%clk 01:13:02] [%emt
00:27:07]} 11...h6 {[%clk 01:42:33] [%emt 00:00:21]} 12.Be3 {[%clk 01:08:04]
[%emt 00:05:28]} 12...Bxe3 {[%clk 01:42:57] [%emt 00:00:06]} 13.Rxe3 {[%clk
01:08:31] [%emt 00:00:03]} 13...a5 {[%clk 01:43:22] [%emt 00:00:05]} 14.d4 
{[%clk 00:59:37] [%emt 00:09:23]} 14...exd4 {[%clk 01:35:59] [%emt 00:07:54]} 
15.Nxd4 {[%clk 00:53:10] [%emt 00:06:58]} 15...Nxd4 {[%clk 01:34:01] [%emt
00:02:27]} 16.cxd4 {[%clk 00:53:37] [%emt 00:00:02]} 16...d5 {[%clk 01:22:38]
[%emt 00:11:53]} 17.Bb3 {[%clk 00:43:41] [%emt 00:10:26]} 17...dxe4 {[%clk
01:03:04] [%emt 00:20:05]} 18.Nxe4 {[%clk 00:44:06] [%emt 00:00:04]} 18...Ra6 
{[%clk 01:00:22] [%emt 00:03:12]} 19.Rc1 {[%clk 00:42:16] [%emt 00:02:19]} 
19...Nxe4 {[%clk 00:56:32] [%emt 00:04:21]} 20.Rxe4 {[%clk 00:42:44] [%emt
00:00:02]} 20...Rd6 {[%clk 00:56:54] [%emt 00:00:08]} 21.Qd2 {[%clk 00:30:02]
[%emt 00:13:12]} 21...b6 {[%clk 00:52:28] [%emt 00:04:56]} 22.Qf4 {[%clk
00:16:11] [%emt 00:14:21]} 22...Bb7 {[%clk 00:40:42] [%emt 00:12:16]} 23.Re3 
{[%clk 00:16:36] [%emt 00:00:04]} 23...Qd7 {[%clk 00:34:12] [%emt 00:07:02]} 
24.Rec3 {[%clk 00:10:27] [%emt 00:06:38]} 24...c6 {[%clk 00:32:41] [%emt
00:02:01]} 25.Rg3 {[%clk 00:07:59] [%emt 00:02:58]} 25...Kh8 {[%clk 00:27:19]
[%emt 00:05:53]} 26.Re1 {[%clk 00:08:18] [%emt 00:00:10]} 26...Bc8 {[%clk
00:15:49] [%emt 00:12:00]} 27.Qe5 {[%clk 00:06:51] [%emt 00:01:57]} 27...Rf6 
{[%clk 00:15:50] [%emt 00:00:29]} 28.Ree3 {[%clk 00:04:55] [%emt 00:02:25]} 
28...Qd8 {[%clk 00:13:16] [%emt 00:03:05]} 29.Rgf3 {[%clk 00:02:37] [%emt
00:02:47]} 29...Rxf3 {[%clk 00:10:31] [%emt 00:03:16]} 30.Rxf3 {[%clk 00:03:06]
[%emt 00:00:01]} 30...Re8 {[%clk 00:10:04] [%emt 00:00:57]} 31.Qf4 {[%clk
00:03:34]} 31...Be6 {[%clk 00:03:55] [%emt 00:06:39]} 32.Bxe6 {[%clk 00:04:00]
[%emt 00:00:05]} 32...fxe6 {[%clk 00:02:19] [%emt 00:02:06]} 33.Qe5 {[%clk
00:03:33] [%emt 00:00:56]} 33...Qd7 {[%clk 00:02:17] [%emt 00:00:32]} 34.Rb3 
{[%clk 00:02:52] [%emt 00:01:12]} 34...c5 {[%clk 00:00:47] [%emt 00:05:39]} 
35.dxc5 {[%clk 00:00:39] [%emt 00:01:14]} 0-1

[Event "FIDE Grand Swiss 2023"]
[Site "Villa Marina, Douglas, Isle of Man"]
[Date "2023.10.28"]
[Round "4.13"]
[White "Abdusattorov, Nodirbek"]
[Black "Cheparinov, Ivan"]
[Result "1/2-1/2"]
[WhiteElo "2716"]
[BlackElo "2658"]
[EventDate "2023.10.25"]
[ECO "A20"]
[PlyCount "69"]
[BlackFideId "2905540"]
[TimeControl "40/100 + 20/50 + 15 + 30s/move"]
[WhiteFideId "14204118"]

1.c4 {[%clk 01:40:55] [%emt 00:00:05]} 1...e5 {[%clk 01:40:37] [%emt 00:00:23]} 
2.b3 {[%clk 01:41:17] [%emt 00:00:08]} 2...Nf6 {[%clk 01:38:47] [%emt 00:02:20]} 
3.Bb2 {[%clk 01:41:34] [%emt 00:00:13]} 3...Nc6 {[%clk 01:39:00] [%emt
00:00:17]} 4.e3 {[%clk 01:41:22] [%emt 00:00:43]} 4...d5 {[%clk 01:35:20] [%emt
00:04:10]} 5.cxd5 {[%clk 01:41:32] [%emt 00:00:19]} 5...Nxd5 {[%clk 01:35:44]
[%emt 00:00:06]} 6.a3 {[%clk 01:41:50] [%emt 00:00:13]} 6...Be6 {[%clk 01:33:35]
[%emt 00:02:39]} 7.Qc2 {[%clk 01:40:39] [%emt 00:01:40]} 7...Qd7 {[%clk
01:28:02] [%emt 00:06:04]} 8.Nf3 {[%clk 01:38:46] [%emt 00:02:22]} 8...f6 
{[%clk 01:28:22] [%emt 00:00:10]} 9.Be2 {[%clk 01:21:53] [%emt 00:17:23]} 
9...g5 {[%clk 01:27:16] [%emt 00:01:36]} 10.d3 {[%clk 01:16:47] [%emt 00:05:37]} 
10...O-O-O {[%clk 01:25:25] [%emt 00:02:20]} 11.Nc3 {[%clk 01:14:58] [%emt
00:02:20]} 11...Kb8 {[%clk 01:17:15] [%emt 00:08:40]} 12.Nd2 {[%clk 01:05:56]
[%emt 00:09:31]} 12...g4 {[%clk 01:11:07] [%emt 00:06:38]} 13.g3 {[%clk
00:54:40] [%emt 00:11:46]} 13...h5 {[%clk 01:00:48] [%emt 00:10:49]} 14.O-O-O 
{[%clk 00:54:03] [%emt 00:01:08]} 14...Nxc3 {[%clk 00:57:00] [%emt 00:04:18]} 
15.Qxc3 {[%clk 00:54:30] [%emt 00:00:02]} 15...f5 {[%clk 00:49:21] [%emt
00:08:09]} 16.h3 {[%clk 00:50:30] [%emt 00:04:30]} 16...Bg7 {[%clk 00:46:51]
[%emt 00:03:00]} 17.hxg4 {[%clk 00:50:46] [%emt 00:00:14]} 17...hxg4 {[%clk
00:47:19] [%emt 00:00:03]} 18.b4 {[%clk 00:45:23] [%emt 00:05:53]} 18...Qd5 
{[%clk 00:45:53] [%emt 00:01:54]} 19.Rhf1 {[%clk 00:32:58] [%emt 00:12:56]} 
19...a5 {[%clk 00:41:20] [%emt 00:05:03]} 20.bxa5 {[%clk 00:31:37] [%emt
00:01:52]} 20...Nxa5 {[%clk 00:41:15] [%emt 00:00:35]} 21.Nc4 {[%clk 00:31:50]
[%emt 00:00:17]} 21...Nc6 {[%clk 00:34:27] [%emt 00:07:18]} 22.Rd2 {[%clk
00:31:50] [%emt 00:00:29]} 22...Rd7 {[%clk 00:31:40] [%emt 00:03:17]} 23.a4 
{[%clk 00:26:13] [%emt 00:06:07]} 23...f4 {[%clk 00:26:13] [%emt 00:05:58]} 
24.Qb3 {[%clk 00:24:24] [%emt 00:02:19]} 24...Rh2 {[%clk 00:20:20] [%emt
00:06:23]} 25.Qb5 {[%clk 00:23:41] [%emt 00:01:12]} 25...f3 {[%clk 00:12:58]
[%emt 00:07:53]} 26.Bd1 {[%clk 00:23:59] [%emt 00:00:12]} 26...Qxb5 {[%clk
00:12:55] [%emt 00:00:33]} 27.axb5 {[%clk 00:24:27] [%emt 00:00:02]} 27...Rxd3 
{[%clk 00:10:33] [%emt 00:02:52]} 28.Rxd3 {[%clk 00:22:51] [%emt 00:02:06]} 
28...Bxc4 {[%clk 00:11:02] [%emt 00:00:02]} 29.Rd2 {[%clk 00:22:45] [%emt
00:00:36]} 29...Bxb5 {[%clk 00:08:17] [%emt 00:03:15]} 30.Re1 {[%clk 00:22:26]
[%emt 00:00:48]} 30...Nb4 {[%clk 00:08:01] [%emt 00:00:45]} 31.Bc2 {[%clk
00:22:44] [%emt 00:00:12]} 31...Nxc2 {[%clk 00:07:53] [%emt 00:00:38]} 32.Kxc2 
{[%clk 00:22:57] [%emt 00:00:17]} 32...b6 {[%clk 00:08:18] [%emt 00:00:06]} 
33.Kb3 {[%clk 00:22:08] [%emt 00:01:18]} 33...Kb7 {[%clk 00:08:02] [%emt
00:00:47]} 34.Rc1 {[%clk 00:22:10] [%emt 00:00:27]} 34...Bf6 {[%clk 00:07:58]
[%emt 00:00:34]} 35.Kb4 {[%clk 00:21:23] [%emt 00:01:17]} 1/2-1/2